{"text_format":"3","workbook":"xlsx","n_sheets":4,"sheets":["Start","Buget de nuntă","Îmbrăcăm.-recepție-muzică-poze","Decor-flori-cadouri-călătorie"],"not_rendered":{"charts":1,"defined_names":22},"read":"whole","date_system":"1900"}

{"sheet":"Start","index":0,"n_rows":7,"n_cols":2,"rows_kept":7}
[null,"DESPRE ACEST ȘABLON"]
[null,"Utilizați acest șablon pentru a urmări cheltuielile de nuntă."]
[null,"Introduceți cheltuielile estimat și pe cele real pentru categorii diferite în foi de lucru diferite."]
[null,"Rezumatul bugetului de nuntă și diagrama sunt actualizate automat pentru dvs."]
[null,"Notă: "]
[null,"Găsiți instrucțiuni suplimentare în coloana A din fiecare foaie de lucru. Acest text a fost ascuns intenționat. Pentru a elimina textul, selectați coloana A, apoi DELETE. Pentru a reafișa textul, selectați coloana A, apoi schimbați culoarea de font."]
[null,"Pentru a afla mai multe despre tabele, apăsați SHIFT, apoi F10 într-un tabel, selectați opțiunea TABEL, apoi TEXT ALTERNATIV."]

{"sheet":"Buget de nuntă","index":1,"n_rows":19,"n_cols":6,"rows_kept":19,"merged":[[2,2,4,5],[18,2,42,5]]}
["Creați un buget de nuntă în această foaie de lucru. Introduceți detaliile în tabelele din foile de lucru Îmbrăcăm.-recepție-muzică-poze și Decor-flori-cadouri-călătorie, pentru a actualiza rezumatul și diagrama din foaia de lucru curentă. Găsiți instrucțiuni utile despre cum să utilizați această foaie de lucru în celulele din această coloană. Etichetă Data nunții se află în celula C1.",null,"Data nunții:"]
["Introduceți data nunții în celula C2. Zile rămase sunt calculate automat în celula E2.",null,{"$f":"TODAY()+365","v":"2019-12-04"},"Zile rămase:",{"$f":"C2-TODAY()","v":365}]
["Titlul acestei foi de lucru se află în celula C3. Următoarele instrucțiuni se află în celula A6.",null,"Rezumatul bugetului de nuntă"]
[]
[]
["Tabelul Rezumat buget, care începe de la celula C6, este actualizat automat. Următoarele instrucțiuni se află în celula A19.",null,"CATEGORIE","ESTIMAT","REAL","PESTE/SUB"]
[null,null,"Îmbrăcăminte",{"$f":"Total_îmbrăcăminte_est","v":{"v":9490,"d":"9,490.00"}},{"$f":"Total_îmbrăcăminte_real","v":{"v":9770,"d":"9,770.00"}},{"$f":"RezumatBuget[[#This Row],[ESTIMAT]]-RezumatBuget[[#This Row],[REAL]]","v":{"v":-280,"d":"-280.00"}}]
[null,null,"Recepție",{"$f":"Total_recepție_est","v":{"v":1050,"d":"1,050.00"}},{"$f":"Total_recepție_real","v":{"v":928,"d":"928.00"}},{"$f":"RezumatBuget[[#This Row],[ESTIMAT]]-RezumatBuget[[#This Row],[REAL]]","v":{"v":122,"d":"122.00"}}]
[null,null,"Muzică",{"$f":"Total_muzică_divertisment_est","v":{"v":600,"d":"600.00"}},{"$f":"Total_muzică_divertisment_real","v":{"v":400,"d":"400.00"}},{"$f":"RezumatBuget[[#This Row],[ESTIMAT]]-RezumatBuget[[#This Row],[REAL]]","v":{"v":200,"d":"200.00"}}]
[null,null,"Imprimare",{"$f":"Total_imprimare_papetărie_est","v":{"v":935,"d":"935.00"}},{"$f":"Total_imprimare_papetărie_real","v":{"v":870,"d":"870.00"}},{"$f":"RezumatBuget[[#This Row],[ESTIMAT]]-RezumatBuget[[#This Row],[REAL]]","v":{"v":65,"d":"65.00"}}]
[null,null,"Fotografii",{"$f":"Total_fotografii_est","v":{"v":1625,"d":"1,625.00"}},{"$f":"Total_fotografii_real","v":{"v":1575,"d":"1,575.00"}},{"$f":"RezumatBuget[[#This Row],[ESTIMAT]]-RezumatBuget[[#This Row],[REAL]]","v":{"v":50,"d":"50.00"}}]
[null,null,"Decorațiuni",{"$f":"Total_decorațiuni_est","v":{"v":700,"d":"700.00"}},{"$f":"Total_decorațiuni_real","v":{"v":720,"d":"720.00"}},{"$f":"RezumatBuget[[#This Row],[ESTIMAT]]-RezumatBuget[[#This Row],[REAL]]","v":{"v":-20,"d":"-20.00"}}]
[null,null,"Flori",{"$f":"Total_flori_est","v":{"v":900,"d":"900.00"}},{"$f":"Total_flori_real","v":{"v":850,"d":"850.00"}},{"$f":"RezumatBuget[[#This Row],[ESTIMAT]]-RezumatBuget[[#This Row],[REAL]]","v":{"v":50,"d":"50.00"}}]
[null,null,"Cadouri",{"$f":"Total_cadouri_est","v":{"v":1345,"d":"1,345.00"}},{"$f":"Total_cadouri_real","v":{"v":1075,"d":"1,075.00"}},{"$f":"RezumatBuget[[#This Row],[ESTIMAT]]-RezumatBuget[[#This Row],[REAL]]","v":{"v":270,"d":"270.00"}}]
[null,null,"Călătorie",{"$f":"Total_călătorie_transport_est","v":{"v":100,"d":"100.00"}},{"$f":"Total_călătorie_transport_real","v":{"v":165,"d":"165.00"}},{"$f":"RezumatBuget[[#This Row],[ESTIMAT]]-RezumatBuget[[#This Row],[REAL]]","v":{"v":-65,"d":"-65.00"}}]
[null,null,"Altele",{"$f":"Total_alte_cheltuieli_est","v":{"v":885,"d":"885.00"}},{"$f":"Total_alte_cheltuieli_real","v":{"v":1021,"d":"1,021.00"}},{"$f":"RezumatBuget[[#This Row],[ESTIMAT]]-RezumatBuget[[#This Row],[REAL]]","v":{"v":-136,"d":"-136.00"}}]
[null,null,"Total cheltuieli",{"$f":"SUBTOTAL(109,RezumatBuget[ESTIMAT])","v":{"v":17630,"d":"17,630.00"}},{"$f":"SUBTOTAL(109,RezumatBuget[REAL])","v":{"v":17374,"d":"17,374.00"}},{"$f":"SUBTOTAL(109,RezumatBuget[PESTE/SUB])","v":{"v":256,"d":"256.00"}}]
[]
["Diagrama cu structură radială din celula C19 este automată actualizat.",null,"Diagrama cu structură radială care afișează procentul fiecărei cheltuieli pe categorii se află în această celulă."]

{"sheet":"Îmbrăcăm.-recepție-muzică-poze","index":2,"n_rows":56,"n_cols":6,"rows_kept":56,"merged":[[16,1,16,4],[28,1,28,4],[29,1,29,4],[35,1,35,4],[48,1,48,4]]}
["Introduceți costurile estimat și costurile real pentru fiecare categorie în tabelele corespunzătoare din această foaie de lucru. Valorile depășite sau valorile mai mici sunt calculate automat. Eticheta Îmbrăcăminte se află în celula din dreapta. Găsiți instrucțiuni utile despre cum să utilizați această foaie de lucru în celulele din această coloană. Apăsați săgeata în jos pentru a începe.","Îmbrăcăminte",{"$nulls":3}," "]
[" Introduceți detaliile în tabelul îmbrăcăminte, începând cu celula de la dreapta. Următoarele instrucțiuni se află în celula A18.","CATEGORIE","ESTIMAT","REAL","PESTE/SUB"," "]
[null,"Inele de logodnă",{"v":1500,"d":"1,500.00"},{"v":1500,"d":"1,500.00"},{"$f":"'Îmbrăcăm.-recepție-muzică-poze'!$C3-'Îmbrăcăm.-recepție-muzică-poze'!$D3","v":{"v":0,"d":"0.00"}}]
[null,"Inel pentru viitorul partener 1",{"v":2000,"d":"2,000.00"},{"v":2300,"d":"2,300.00"},{"$f":"'Îmbrăcăm.-recepție-muzică-poze'!$C4-'Îmbrăcăm.-recepție-muzică-poze'!$D4","v":{"v":-300,"d":"-300.00 "}}]
[null,"Ținută/frac pentru viitorul partener 1",{"v":3000,"d":"3,000.00"},{"v":2750,"d":"2,750.00"},{"$f":"'Îmbrăcăm.-recepție-muzică-poze'!$C5-'Îmbrăcăm.-recepție-muzică-poze'!$D5","v":{"v":250,"d":"250.00"}}]
[null,"Voal/podoabă pentru cap pentru viitorul partener 1",{"v":500,"d":"500.00"},{"v":500,"d":"500.00"},{"$f":"'Îmbrăcăm.-recepție-muzică-poze'!$C6-'Îmbrăcăm.-recepție-muzică-poze'!$D6","v":{"v":0,"d":"0.00"}}]
[null,"Pantofi pentru viitorul partener 1",{"v":350,"d":"350.00"},{"v":300,"d":"300.00"},{"$f":"'Îmbrăcăm.-recepție-muzică-poze'!$C7-'Îmbrăcăm.-recepție-muzică-poze'!$D7","v":{"v":50,"d":"50.00"}}]
[null,"Bijuterii pentru viitorul partener 1",{"v":400,"d":"400.00"},{"v":550,"d":"550.00"},{"$f":"'Îmbrăcăm.-recepție-muzică-poze'!$C8-'Îmbrăcăm.-recepție-muzică-poze'!$D8","v":{"v":-150,"d":"-150.00 "}}]
[null,"Ciorapi pentru viitorul partener 1",{"v":20,"d":"20.00"},{"v":20,"d":"20.00"},{"$f":"'Îmbrăcăm.-recepție-muzică-poze'!$C9-'Îmbrăcăm.-recepție-muzică-poze'!$D9","v":{"v":0,"d":"0.00"}}]
[null,"Inel pentru viitorul partener 2",{"v":300,"d":"300.00"},{"v":250,"d":"250.00"},{"$f":"'Îmbrăcăm.-recepție-muzică-poze'!$C10-'Îmbrăcăm.-recepție-muzică-poze'!$D10","v":{"v":50,"d":"50.00"}}]
[null,"Ținută/frac pentru viitorul partener 2",{"v":300,"d":"300.00"},{"v":350,"d":"350.00"},{"$f":"'Îmbrăcăm.-recepție-muzică-poze'!$C11-'Îmbrăcăm.-recepție-muzică-poze'!$D11","v":{"v":-50,"d":"-50.00 "}}]
[null,"Voal/podoabă pentru cap pentru viitorul partener 2",{"v":500,"d":"500.00"},{"v":500,"d":"500.00"},{"$f":"'Îmbrăcăm.-recepție-muzică-poze'!$C12-'Îmbrăcăm.-recepție-muzică-poze'!$D12","v":{"v":0,"d":"0.00"}}]
[null,"Pantofi pentru viitorul partener 2",{"v":200,"d":"200.00"},{"v":175,"d":"175.00"},{"$f":"'Îmbrăcăm.-recepție-muzică-poze'!$C13-'Îmbrăcăm.-recepție-muzică-poze'!$D13","v":{"v":25,"d":"25.00"}}]
[null,"Bijuterii pentru viitorul partener 2",{"v":400,"d":"400.00"},{"v":550,"d":"550.00"},{"$f":"'Îmbrăcăm.-recepție-muzică-poze'!$C14-'Îmbrăcăm.-recepție-muzică-poze'!$D14","v":{"v":-150,"d":"-150.00 "}}]
[null,"Ciorapi pentru viitorul partener 2",{"v":20,"d":"20.00"},{"v":25,"d":"25.00"},{"$f":"'Îmbrăcăm.-recepție-muzică-poze'!$C15-'Îmbrăcăm.-recepție-muzică-poze'!$D15","v":{"v":-5,"d":"-5.00 "}}]
[null,"Total îmbrăcăminte",{"$f":"SUBTOTAL(109,Îmbrăcăminte[ESTIMAT])","v":{"v":9490,"d":"9,490.00"}},{"$f":"SUBTOTAL(109,Îmbrăcăminte[REAL])","v":{"v":9770,"d":"9,770.00"}},{"$f":"SUBTOTAL(109,Îmbrăcăminte[PESTE/SUB])","v":{"v":-280,"d":"-280.00 "}}]
[]
["Eticheta Recepție se află în celula din dreapta.","Recepție*"]
["Introduceți în tabel costurile pentru recepție, excluzând costurile pentru divertisment și decorațiuni, începând cu celula din dreapta. Următoarele instrucțiuni se află în celula A31.","CATEGORIE","ESTIMAT","REAL","PESTE/SUB"]
[null,"Tarife sală/locație",{"v":200,"d":"200.00"},{"v":150,"d":"150.00"},{"$f":"'Îmbrăcăm.-recepție-muzică-poze'!$C20-'Îmbrăcăm.-recepție-muzică-poze'!$D20","v":{"v":50,"d":"50.00"}}]
[null,"Mese și scaune",{"v":100,"d":"100.00"},{"v":50,"d":"50.00"},{"$f":"'Îmbrăcăm.-recepție-muzică-poze'!$C21-'Îmbrăcăm.-recepție-muzică-poze'!$D21","v":{"v":50,"d":"50.00"}}]
[null,"Mâncăruri",{"v":0,"d":"0.00"},{"v":0,"d":"0.00"},{"$f":"'Îmbrăcăm.-recepție-muzică-poze'!$C22-'Îmbrăcăm.-recepție-muzică-poze'!$D22","v":{"v":0,"d":"0.00"}}]
[null,"Băuturi",{"v":0,"d":"0.00"},{"v":0,"d":"0.00"},{"$f":"'Îmbrăcăm.-recepție-muzică-poze'!$C23-'Îmbrăcăm.-recepție-muzică-poze'!$D23","v":{"v":0,"d":"0.00"}}]
[null,"Pânză",{"v":0,"d":"0.00"},{"v":0,"d":"0.00"},{"$f":"'Îmbrăcăm.-recepție-muzică-poze'!$C24-'Îmbrăcăm.-recepție-muzică-poze'!$D24","v":{"v":0,"d":"0.00"}}]
[null,"Tort",{"v":700,"d":"700.00"},{"v":700,"d":"700.00"},{"$f":"'Îmbrăcăm.-recepție-muzică-poze'!$C25-'Îmbrăcăm.-recepție-muzică-poze'!$D25","v":{"v":0,"d":"0.00"}}]
[null,"Favoruri",{"v":50,"d":"50.00"},{"v":28,"d":"28.00"},{"$f":"'Îmbrăcăm.-recepție-muzică-poze'!$C26-'Îmbrăcăm.-recepție-muzică-poze'!$D26","v":{"v":22,"d":"22.00"}}]
[null,"Personal și recompense",{"v":0,"d":"0.00"},{"v":0,"d":"0.00"},{"$f":"'Îmbrăcăm.-recepție-muzică-poze'!$C27-'Îmbrăcăm.-recepție-muzică-poze'!$D27","v":{"v":0,"d":"0.00"}}]
[null,"Total recepție",{"$f":"SUBTOTAL(109,Recepție[ESTIMAT])","v":{"v":1050,"d":"1,050.00"}},{"$f":"SUBTOTAL(109,Recepție[REAL])","v":{"v":928,"d":"928.00"}},{"$f":"SUBTOTAL(109,Recepție[PESTE/SUB])","v":{"v":122,"d":"122.00"}}]
[null,"* Exclude divertismentul și decorațiunile"]
[]
["Etichetă pentru muzică sau divertisment se află în celula din dreapta.","Muzică/divertisment"]
["Introduceți detaliile în tabelul Muzică, începând cu celula din dreapta. Următoarele instrucțiuni se află în celula A37.","CATEGORIE","ESTIMAT","REAL","PESTE/SUB"]
[null,"Muzicieni pentru ceremonie",{"v":400,"d":"400.00"},{"v":400,"d":"400.00"},{"$f":"'Îmbrăcăm.-recepție-muzică-poze'!$C33-'Îmbrăcăm.-recepție-muzică-poze'!$D33","v":{"v":0,"d":"0.00"}}]
[null,"Trupă/DJ pentru recepție",{"v":200,"d":"200.00"},{"v":0,"d":"0.00"},{"$f":"'Îmbrăcăm.-recepție-muzică-poze'!$C34-'Îmbrăcăm.-recepție-muzică-poze'!$D34","v":{"v":200,"d":"200.00"}}]
[null,"Total muzică/divertisment",{"$f":"SUBTOTAL(109,Muzică[ESTIMAT])","v":{"v":600,"d":"600.00"}},{"$f":"SUBTOTAL(109,Muzică[REAL])","v":{"v":400,"d":"400.00"}},{"$f":"SUBTOTAL(109,Muzică[PESTE/SUB])","v":{"v":200,"d":"200.00"}}]
[]
["Eticheta Imprimare sau Papetărie se află în celula de la dreapta.","Imprimare/papetărie"]
["Introduceți detaliile în tabelul Imprimare, începând cu celula din dreapta. Următoarele instrucțiuni se află în celula A50.","CATEGORIE","ESTIMAT","REAL","PESTE/SUB"]
[null,"Invitații",{"v":500,"d":"500.00"},{"v":450,"d":"450.00"},{"$f":"'Îmbrăcăm.-recepție-muzică-poze'!$C39-'Îmbrăcăm.-recepție-muzică-poze'!$D39","v":{"v":50,"d":"50.00"}}]
[null,"Anunțuri",{"v":200,"d":"200.00"},{"v":175,"d":"175.00"},{"$f":"'Îmbrăcăm.-recepție-muzică-poze'!$C40-'Îmbrăcăm.-recepție-muzică-poze'!$D40","v":{"v":25,"d":"25.00"}}]
[null,"Cărți poștale de mulțumire",{"v":100,"d":"100.00"},{"v":100,"d":"100.00"},{"$f":"'Îmbrăcăm.-recepție-muzică-poze'!$C41-'Îmbrăcăm.-recepție-muzică-poze'!$D41","v":{"v":0,"d":"0.00"}}]
[null,"Papetărie personală",{"v":0,"d":"0.00"},{"v":0,"d":"0.00"},{"$f":"'Îmbrăcăm.-recepție-muzică-poze'!$C42-'Îmbrăcăm.-recepție-muzică-poze'!$D42","v":{"v":0,"d":"0.00"}}]
[null,"Carte de oaspeți",{"v":25,"d":"25.00"},{"v":25,"d":"25.00"},{"$f":"'Îmbrăcăm.-recepție-muzică-poze'!$C43-'Îmbrăcăm.-recepție-muzică-poze'!$D43","v":{"v":0,"d":"0.00"}}]
[null,"Programe",{"v":75,"d":"75.00"},{"v":80,"d":"80.00"},{"$f":"'Îmbrăcăm.-recepție-muzică-poze'!$C44-'Îmbrăcăm.-recepție-muzică-poze'!$D44","v":{"v":-5,"d":"-5.00 "}}]
[null,"Șervețele festive pentru mese",{"v":35,"d":"35.00"},{"v":40,"d":"40.00"},{"$f":"'Îmbrăcăm.-recepție-muzică-poze'!$C45-'Îmbrăcăm.-recepție-muzică-poze'!$D45","v":{"v":-5,"d":"-5.00 "}}]
[null,"Chibrituri",{"v":0,"d":"0.00"},{"v":0,"d":"0.00"},{"$f":"'Îmbrăcăm.-recepție-muzică-poze'!$C46-'Îmbrăcăm.-recepție-muzică-poze'!$D46","v":{"v":0,"d":"0.00"}}]
[null,"Scrieri caligrafice",{"v":0,"d":"0.00"},{"v":0,"d":"0.00"},{"$f":"'Îmbrăcăm.-recepție-muzică-poze'!$C47-'Îmbrăcăm.-recepție-muzică-poze'!$D47","v":{"v":0,"d":"0.00"}}]
[null,"Total imprimare/papetărie",{"$f":"SUBTOTAL(109,Imprimare[ESTIMAT])","v":{"v":935,"d":"935.00"}},{"$f":"SUBTOTAL(109,Imprimare[REAL])","v":{"v":870,"d":"870.00"}},{"$f":"SUBTOTAL(109,Imprimare[PESTE/SUB])","v":{"v":65,"d":"65.00"}}]
[]
["Eticheta Fotografii se află în celula din dreapta.","Fotografii"]
["Introduceți detaliile în tabelul Fotografii, începând cu celula din dreapta.","CATEGORIE","ESTIMAT","REAL","PESTE/SUB"]
[null,"Îmbrăcăminte de seară",{"v":1300,"d":"1,300.00"},{"v":1300,"d":"1,300.00"},{"$f":"'Îmbrăcăm.-recepție-muzică-poze'!$C52-'Îmbrăcăm.-recepție-muzică-poze'!$D52","v":{"v":0,"d":"0.00"}}]
[null,"Imprimări suplimentare",{"v":25,"d":"25.00"},{"v":25,"d":"25.00"},{"$f":"'Îmbrăcăm.-recepție-muzică-poze'!$C53-'Îmbrăcăm.-recepție-muzică-poze'!$D53","v":{"v":0,"d":"0.00"}}]
[null,"Albume foto",{"v":100,"d":"100.00"},{"v":100,"d":"100.00"},{"$f":"'Îmbrăcăm.-recepție-muzică-poze'!$C54-'Îmbrăcăm.-recepție-muzică-poze'!$D54","v":{"v":0,"d":"0.00"}}]
[null,"Înregistrări video",{"v":200,"d":"200.00"},{"v":150,"d":"150.00"},{"$f":"'Îmbrăcăm.-recepție-muzică-poze'!$C55-'Îmbrăcăm.-recepție-muzică-poze'!$D55","v":{"v":50,"d":"50.00"}}]
[null,"Total fotografii",{"$f":"SUBTOTAL(109,Fotografii[ESTIMAT])","v":{"v":1625,"d":"1,625.00"}},{"$f":"SUBTOTAL(109,Fotografii[REAL])","v":{"v":1575,"d":"1,575.00"}},{"$f":"SUBTOTAL(109,Fotografii[PESTE/SUB])","v":{"v":50,"d":"50.00"}}]

{"sheet":"Decor-flori-cadouri-călătorie","index":3,"n_rows":48,"n_cols":5,"rows_kept":48,"merged":[[8,1,8,4],[9,1,9,4],[18,1,18,4],[27,1,27,4],[34,1,34,4]]}
["Introduceți costurile estimat și costurile real pentru fiecare categorie în tabelele corespunzătoare din această foaie de lucru. Valorile depășite sau valorile mai mici sunt calculate automat. Eticheta Decorațiuni se află în celula din dreapta. Găsiți instrucțiuni utile despre cum să utilizați această foaie de lucru în celulele din această coloană. Apăsați săgeata în jos pentru a începe.","Decorațiuni*"]
["Introduceți în tabel costurile pentru decorațiuni, excluzând costurile pentru flori, începând cu celula din dreapta. Următoarele instrucțiuni se află în celula A11.","CATEGORIE","ESTIMAT","REAL","PESTE/SUB"]
[null,"Fundițe pentru scaune",{"v":0,"d":"0.00"},{"v":0,"d":"0.00"},{"$f":"'Decor-flori-cadouri-călătorie'!$C3-'Decor-flori-cadouri-călătorie'!$D3","v":{"v":0,"d":"0.00"}}]
[null,"Decorațiuni pentru centrul meselor",{"v":300,"d":"300.00"},{"v":320,"d":"320.00"},{"$f":"'Decor-flori-cadouri-călătorie'!$C4-'Decor-flori-cadouri-călătorie'!$D4","v":{"v":-20,"d":"-20.00 "}}]
[null,"Lumânări",{"v":100,"d":"100.00"},{"v":75,"d":"75.00"},{"$f":"'Decor-flori-cadouri-călătorie'!$C5-'Decor-flori-cadouri-călătorie'!$D5","v":{"v":25,"d":"25.00"}}]
[null,"Iluminare",{"v":100,"d":"100.00"},{"v":75,"d":"75.00"},{"$f":"'Decor-flori-cadouri-călătorie'!$C6-'Decor-flori-cadouri-călătorie'!$D6","v":{"v":25,"d":"25.00"}}]
[null,"Baloane",{"v":200,"d":"200.00"},{"v":250,"d":"250.00"},{"$f":"'Decor-flori-cadouri-călătorie'!$C7-'Decor-flori-cadouri-călătorie'!$D7","v":{"v":-50,"d":"-50.00 "}}]
[null,"Total decorațiuni",{"$f":"SUBTOTAL(109,Decorațiuni[ESTIMAT])","v":{"v":700,"d":"700.00"}},{"$f":"SUBTOTAL(109,Decorațiuni[REAL])","v":{"v":720,"d":"720.00"}},{"$f":"SUBTOTAL(109,Decorațiuni[PESTE/SUB])","v":{"v":-20,"d":"-20.00 "}}]
[null,"*Exclude florile"]
[]
["Eticheta Flori se află în celula din dreapta.","Flori"]
["Introduceți detaliile în tabelul Flori, începând cu celula de la dreapta. Următoarele instrucțiuni se află în celula A20.","CATEGORIE","ESTIMAT","REAL","PESTE/SUB"]
[null,"Buchete",{"v":500,"d":"500.00"},{"v":450,"d":"450.00"},{"$f":"'Decor-flori-cadouri-călătorie'!$C13-'Decor-flori-cadouri-călătorie'!$D13","v":{"v":50,"d":"50.00"}}]
[null,"Cocarde",{"v":0,"d":"0.00"},{"v":0,"d":"0.00"},{"$f":"'Decor-flori-cadouri-călătorie'!$C14-'Decor-flori-cadouri-călătorie'!$D14","v":{"v":0,"d":"0.00"}}]
[null,"Ornamente florale",{"v":0,"d":"0.00"},{"v":0,"d":"0.00"},{"$f":"'Decor-flori-cadouri-călătorie'!$C15-'Decor-flori-cadouri-călătorie'!$D15","v":{"v":0,"d":"0.00"}}]
[null,"Ceremonia",{"v":400,"d":"400.00"},{"v":400,"d":"400.00"},{"$f":"'Decor-flori-cadouri-călătorie'!$C16-'Decor-flori-cadouri-călătorie'!$D16","v":{"v":0,"d":"0.00"}}]
[null,"Recepție",{"v":0,"d":"0.00"},{"v":0,"d":"0.00"},{"$f":"'Decor-flori-cadouri-călătorie'!$C17-'Decor-flori-cadouri-călătorie'!$D17","v":{"v":0,"d":"0.00"}}]
[null,"Total flori",{"$f":"SUBTOTAL(109,Flori[ESTIMAT])","v":{"v":900,"d":"900.00"}},{"$f":"SUBTOTAL(109,Flori[REAL])","v":{"v":850,"d":"850.00"}},{"$f":"SUBTOTAL(109,Flori[PESTE/SUB])","v":{"v":50,"d":"50.00"}}]
[]
["Eticheta Cadouri se află în celula din dreapta.","Cadouri"]
["Introduceți detaliile în tabelul Cadouri, începând cu celula de la dreapta. Următoarele instrucțiuni se află în celula A29.","CATEGORIE","ESTIMAT","REAL","PESTE/SUB"]
[null,"Participanți",{"v":1000,"d":"1,000.00"},{"v":400,"d":"400.00"},{"$f":"'Decor-flori-cadouri-călătorie'!$C22-'Decor-flori-cadouri-călătorie'!$D22","v":{"v":600,"d":"600.00"}}]
[null,"Partenerul 1",{"v":150,"d":"150.00"},{"v":200,"d":"200.00"},{"$f":"'Decor-flori-cadouri-călătorie'!$C23-'Decor-flori-cadouri-călătorie'!$D23","v":{"v":-50,"d":"-50.00 "}}]
[null,"Partenerul 2",{"v":150,"d":"150.00"},{"v":200,"d":"200.00"},{"$f":"'Decor-flori-cadouri-călătorie'!$C24-'Decor-flori-cadouri-călătorie'!$D24","v":{"v":-50,"d":"-50.00 "}}]
[null,"Părinți",{"v":25,"d":"25.00"},{"v":25,"d":"25.00"},{"$f":"'Decor-flori-cadouri-călătorie'!$C25-'Decor-flori-cadouri-călătorie'!$D25","v":{"v":0,"d":"0.00"}}]
[null,"Cititori/alți participanți",{"v":20,"d":"20.00"},{"v":250,"d":"250.00"},{"$f":"'Decor-flori-cadouri-călătorie'!$C26-'Decor-flori-cadouri-călătorie'!$D26","v":{"v":-230,"d":"-230.00 "}}]
[null,"Total cadouri",{"$f":"SUBTOTAL(109,Cadouri[ESTIMAT])","v":{"v":1345,"d":"1,345.00"}},{"$f":"SUBTOTAL(109,Cadouri[REAL])","v":{"v":1075,"d":"1,075.00"}},{"$f":"SUBTOTAL(109,Cadouri[PESTE/SUB])","v":{"v":270,"d":"270.00"}}]
[]
["Eticheta Călătorie sau Transport se află în celula din dreapta.","Călătorie/transport"]
["Introduceți detaliile în tabelul Călătorie, începând cu celula de la dreapta. Următoarele instrucțiuni se află în celula A36.","CATEGORIE","ESTIMAT","REAL","PESTE/SUB"]
[null,"Mașini tip limuzină/autobuz",{"v":100,"d":"100.00"},{"v":125,"d":"125.00"},{"$f":"'Decor-flori-cadouri-călătorie'!$C31-'Decor-flori-cadouri-călătorie'!$D31","v":{"v":-25,"d":"-25.00 "}}]
[null,"Parcare",{"v":0,"d":"0.00"},{"v":40,"d":"40.00"},{"$f":"'Decor-flori-cadouri-călătorie'!$C32-'Decor-flori-cadouri-călătorie'!$D32","v":{"v":-40,"d":"-40.00 "}}]
[null,"Taxiuri",{"v":0,"d":"0.00"},{"v":0,"d":"0.00"},{"$f":"'Decor-flori-cadouri-călătorie'!$C33-'Decor-flori-cadouri-călătorie'!$D33","v":{"v":0,"d":"0.00"}}]
[null,"Total călătorie/transport",{"$f":"SUBTOTAL(109,Călătorie[ESTIMAT])","v":{"v":100,"d":"100.00"}},{"$f":"SUBTOTAL(109,Călătorie[REAL])","v":{"v":165,"d":"165.00"}},{"$f":"SUBTOTAL(109,Călătorie[PESTE/SUB])","v":{"v":-65,"d":"-65.00 "}}]
[]
["Eticheta Alte cheltuieli se află în celula din dreapta.","Alte cheltuieli"]
["Introduceți detaliile în tabelul Alte cheltuieli, începând cu celula de la dreapta.","CATEGORIE","ESTIMAT","REAL","PESTE/SUB"]
[null,"Preot oficiant",{"v":0,"d":"0.00"},{"v":0,"d":"0.00"},{"$f":"'Decor-flori-cadouri-călătorie'!$C38-'Decor-flori-cadouri-călătorie'!$D38","v":{"v":0,"d":"0.00"}}]
[null,"Tarife biserică/ceremonie",{"v":40,"d":"40.00"},{"v":55,"d":"55.00"},{"$f":"'Decor-flori-cadouri-călătorie'!$C39-'Decor-flori-cadouri-călătorie'!$D39","v":{"v":-15,"d":"-15.00 "}}]
[null,"Coordonator nuntă",{"v":0,"d":"0.00"},{"v":0,"d":"0.00"},{"$f":"'Decor-flori-cadouri-călătorie'!$C40-'Decor-flori-cadouri-călătorie'!$D40","v":{"v":0,"d":"0.00"}}]
[null,"Repetiție cină",{"v":450,"d":"450.00"},{"v":450,"d":"450.00"},{"$f":"'Decor-flori-cadouri-călătorie'!$C41-'Decor-flori-cadouri-călătorie'!$D41","v":{"v":0,"d":"0.00"}}]
[null,"Petrecere de logodnă",{"v":20,"d":"20.00"},{"v":50,"d":"50.00"},{"$f":"'Decor-flori-cadouri-călătorie'!$C42-'Decor-flori-cadouri-călătorie'!$D42","v":{"v":-30,"d":"-30.00 "}}]
[null,"Petrecere de anunțare a nunții",{"v":30,"d":"30.00"},{"v":20,"d":"20.00"},{"$f":"'Decor-flori-cadouri-călătorie'!$C43-'Decor-flori-cadouri-călătorie'!$D43","v":{"v":10,"d":"10.00"}}]
[null,"Rezervări salon",{"v":45,"d":"45.00"},{"v":46,"d":"46.00"},{"$f":"'Decor-flori-cadouri-călătorie'!$C44-'Decor-flori-cadouri-călătorie'!$D44","v":{"v":-1,"d":"-1.00 "}}]
[null,"Petrecerea burlacilor",{"v":0,"d":"0.00"},{"v":0,"d":"0.00"},{"$f":"'Decor-flori-cadouri-călătorie'!$C45-'Decor-flori-cadouri-călătorie'!$D45","v":{"v":0,"d":"0.00"}}]
[null,"Mic dejun",{"v":300,"d":"300.00"},{"v":400,"d":"400.00"},{"$f":"'Decor-flori-cadouri-călătorie'!$C46-'Decor-flori-cadouri-călătorie'!$D46","v":{"v":-100,"d":"-100.00 "}}]
[null,"Camere de hotel",{"v":0,"d":"0.00"},{"v":0,"d":"0.00"},{"$f":"'Decor-flori-cadouri-călătorie'!$C47-'Decor-flori-cadouri-călătorie'!$D47","v":{"v":0,"d":"0.00"}}]
[null,"Total alte cheltuieli",{"$f":"SUBTOTAL(109,AlteCheltuieli[ESTIMAT])","v":{"v":885,"d":"885.00"}},{"$f":"SUBTOTAL(109,AlteCheltuieli[REAL])","v":{"v":1021,"d":"1,021.00"}},{"$f":"SUBTOTAL(109,AlteCheltuieli[PESTE/SUB])","v":{"v":-136,"d":"-136.00 "}}]